bitfinex/quotes_SOLUSD_20251019
["timestamp","ask_amount","ask_price","bid_price","bid_amount"]
[1760907312702,1e-08,190.03,190.02,0.67]
[1760907313099,1e-08,190.03,190.02,5.93260393]
[1760907314314,1e-08,190.03,190.02,5.26260393]
[1760907314709,1e-08,190.03,190.02,5.94260393]
[1760907315227,1e-08,190.03,190.02,67.74260393]
[1760907316120,0.1,190.05,190.04,61.79999999]
[1760907316322,10.87647521,190.16,190.04,166.09999999]
[1760907316510,0.66,190.11,190.05,0.68]
[1760907316700,0.66,190.11,190.05,166.77999999]
[1760907317028,0.66,190.11,190.06,0.68]
[1760907317235,10.87647521,190.17,190.07,0.68]
[1760907317398,3.25132716,190.15,190.07,0.68]
[1760907317598,0.66,190.14,190.07,0.68]
[1760907317802,3.91132716,190.14,190.07,0.68]
[1760907318106,0.66,190.14,190.05,22.88]
[1760907318315,0.66,190.14,190.04,37.42]
[1760907318316,0.66,190.13,190.04,48.29647521]
[1760907318524,3.25132716,190.1,190.04,37.42]
[1760907318826,3.25132716,190.07,190.02,29.29551785]
[1760907319006,3.91132716,190.06,190.02,18.41904264]
[1760907319323,0.66,190.05,190.02,13.15650984]
[1760907319510,3.91132716,190.05,190.02,13.15650984]
[1760907319706,3.91132716,190.05,190.0,5.26315789]
[1760907319707,0.66,190.04,190.0,5.26315789]
[1760907320021,3.91132716,190.03,190.0,18.42105262]
[1760907320230,3.91132716,190.02,190.0,18.42105262]
[1760907320609,3.91132716,190.01,189.96,28.98653665]
[1760907320908,3.91132716,190.0,189.96,13.15999555]
[1760907321621,3.25132716,190.0,189.96,13.15999555]
[1760907321926,3.25132716,189.98,189.96,13.15999555]
[1760907322330,3.91132716,189.98,189.96,13.15999555]
[1760907323129,0.66,189.97,189.94,5.26482046]
[1760907323505,3.91132716,189.97,189.94,5.26482046]
[1760907323707,0.66,189.96,189.94,5.26482046]
[1760907323920,3.91132716,189.96,189.94,5.26482046]
[1760907324109,3.25132716,189.96,189.94,5.26482046]
[1760907324314,3.91132716,189.96,189.94,5.26482046]
[1760907324516,3.25132716,189.95,189.94,5.26482046]
[1760907324725,3.91132716,189.96,189.94,5.26482046]
[1760907325116,3.91132716,189.96,189.93,13.16242517]
[1760907325315,3.25132716,190.08,189.94,0.68]
[1760907325513,22.88,190.01,189.94,0.68]
[1760907325818,0.66,190.03,189.94,1.20648204]
[1760907326021,0.66,190.03,189.95,0.68]
[1760907326226,25.0,190.17,189.99,22.88]
[1760907326533,0.66,190.1,190.0,60.42]
[1760907326739,0.66,190.09,190.01,0.68]
[1760907327230,3.91132716,190.09,190.02,18.41911377]
[1760907328213,3.91132716,190.08,190.02,18.41911377]
[1760907328420,0.66,190.07,190.02,18.41911377]
[1760907328727,0.66,190.06,190.02,18.41911377]
[1760907329312,22.88,190.11,190.02,18.41911377]
[1760907329313,0.66,190.05,190.02,18.41911377]
[1760907329511,0.66,190.08,190.02,19.09911377]
[1760907330837,0.66,190.07,190.02,18.41911377]
[1760907331009,0.66,190.06,190.02,18.41911377]
[1760907331211,0.66,190.05,190.02,18.41911377]
[1760907331410,8.03274075,190.07,190.02,18.41911377]
[1760907331613,0.66,190.04,189.99,13.15805281]
[1760907331823,0.66,190.03,189.99,13.15805281]
[1760907332022,0.66,190.02,189.99,74.95805281]
[1760907332422,0.66,190.02,189.99,80.22148772]
[1760907333234,0.66,190.01,189.99,5.26343491]
[1760907333624,0.66,190.0,189.97,5.26374662]
[1760907333931,0.66,189.99,189.97,5.26374662]
[1760907334233,0.66,189.98,189.94,5.26482046]
[1760907334422,0.66,189.97,189.93,13.16234623]
[1760907334619,30.91274075,190.01,189.93,13.16234623]
[1760907334931,0.66,189.97,189.93,13.16234623]
[1760907336139,30.91274075,190.01,189.93,13.16234623]
[1760907336440,0.66,190.0,189.93,13.16234623]
[1760907336738,0.66,189.99,189.93,13.16234623]
[1760907337821,0.66,189.99,189.91,26.32699399]
[1760907338033,0.66,189.99,189.92,0.68]
[1760907339543,22.88,190.01,189.92,0.68]
[1760907339835,0.66,190.02,189.95,18.42590155]
[1760907340035,0.66,190.04,189.96,0.68]
[1760907340242,0.66,190.04,189.96,62.48]
[1760907340411,22.88,190.03,189.97,0.68]
[1760907340619,0.66,190.06,189.97,0.68]
[1760907340815,0.66,190.06,189.97,62.48]
[1760907341122,0.66,190.11,189.99,10.87647521]
[1760907341331,5.29125128,190.16,190.01,10.87647521]
[1760907341519,5.29125128,190.12,190.02,37.56]
[1760907341716,5.95125128,190.11,190.02,37.56]
[1760907341917,0.66,190.1,190.03,18.4181445]
[1760907342145,0.66,190.09,190.03,18.4181445]
[1760907343429,23.54,190.12,190.04,0.68]
[1760907343948,23.54,190.12,190.03,13.1558175]
[1760907344137,11.54647521,190.11,190.03,13.1558175]
[1760907344337,0.67,190.1,190.03,13.8358175]
[1760907345440,22.88,190.12,190.04,0.68]
[1760907345672,22.88,190.1,190.04,0.68]
[1760907346033,23.55,190.1,190.05,5.26177321]
[1760907346247,23.55,190.1,190.05,18.41620625]
[1760907347458,23.55,190.1,190.05,80.21620625]
[1760907347833,0.67,190.09,190.05,67.06177321]
[1760907348038,0.67,190.08,190.05,67.06177321]
[1760907348939,0.67,190.07,190.05,67.06177321]
[1760907349864,5.96125128,190.09,190.05,67.06177321]
[1760907350040,0.67,190.08,190.05,67.06177321]
[1760907350651,22.88,190.11,190.05,18.41620625]
[1760907350837,0.1,190.23,190.05,18.41620625]
[1760907350838,10.87647521,190.14,190.06,0.68]
[1760907351034,0.67,190.15,190.06,62.48]
[1760907351260,0.67,190.15,190.07,0.68]
[1760907351480,11.54647521,190.18,190.07,0.68]
[1760907351643,0.1,190.23,190.11,18.41039397]
[1760907351644,0.67,190.2,190.11,18.41039397]
[1760907351845,5.29125128,190.2,190.12,0.68]
[1760907352060,0.67,190.19,190.12,0.68]
[1760907352268,5.96125128,190.19,190.12,0.68]
[1760907352675,2.97410968,190.19,190.12,0.68]
[1760907352846,25.85410968,190.19,190.12,0.68]
[1760907353469,2.97410968,190.19,190.12,0.68]
[1760907353667,23.55,190.19,190.13,18.40845736]
[1760907354543,0.67,190.18,190.13,18.40845736]
[1760907354745,0.67,190.18,190.13,19.08845736]
[1760907357379,0.67,190.18,190.13,5.93955924]
[1760907357683,0.67,190.18,190.12,5.25983589]
[1760907358080,0.67,190.18,190.12,18.40929812]
[1760907358458,0.67,190.18,190.12,23.68972951]
[1760907358657,0.67,190.18,190.12,24.36972951]
[1760907359276,0.67,190.18,190.13,5.28043139]
[1760907359468,0.67,190.18,190.13,5.96043139]
[1760907359859,0.67,190.18,190.14,5.25928263]
[1760907360859,0.67,190.18,190.14,10.53971402]
[1760907361779,0.67,190.18,190.14,5.25928263]
[1760907362280,22.88,190.19,190.14,5.25928263]
[1760907362475,0.67,190.17,190.14,5.25928263]
[1760907363685,0.67,190.16,190.12,5.25983589]
[1760907363869,0.67,190.15,190.12,5.25983589]
[1760907364877,5.28043139,190.16,190.11,5.26011256]
[1760907365073,0.67,190.14,190.11,5.26011256]
[1760907365785,28.83043139,190.16,190.11,5.26011256]
[1760907366279,5.95043139,190.15,190.09,5.28043139]
[1760907366471,5.95043139,190.15,190.09,5.96043139]
[1760907366676,0.67,190.15,190.1,5.96043139]
[1760907367086,0.67,190.15,190.11,5.26011256]
[1760907367880,5.28043139,190.12,190.07,13.15261098]
[1760907368188,0.67,190.11,190.08,5.26094276]
[1760907369254,5.95043139,190.11,190.07,18.41383053]
[1760907369493,5.95043139,190.11,190.07,5.26121955]
[1760907369665,5.28043139,190.11,190.07,5.26121955]
[1760907369983,5.95043139,190.1,190.07,5.26121955]
[1760907370170,5.95043139,190.09,190.05,5.261532]
[1760907370369,0.67,190.08,190.05,5.261532]
[1760907370569,0.67,190.07,190.05,5.261532]
[1760907371386,5.95043139,190.09,190.05,5.261532]
[1760907371564,0.67,190.08,190.05,5.261532]
[1760907372387,0.67,190.08,190.04,5.26205009]
[1760907373763,5.28043139,190.06,190.0,18.42065071]
[1760907373969,0.67,190.05,190.0,23.7010821]
[1760907374370,0.67,190.05,190.0,18.42065071]
[1760907374371,0.65,190.04,190.0,18.42065071]
[1760907375087,0.65,190.03,190.0,18.42065071]
[1760907375385,2.95763905,190.02,189.98,5.26345619]
[1760907376669,2.30763905,190.02,189.98,5.26345619]
[1760907376988,0.65,190.01,189.98,5.26345619]
[1760907377670,0.65,190.01,189.97,18.4233515]
[1760907378070,0.65,190.01,189.97,19.1433515]
[1760907378764,0.65,190.01,189.97,18.4233515]
[1760907378971,0.65,190.01,189.97,13.15936245]
[1760907379267,2.95763905,190.01,189.97,13.15936245]
[1760907379475,2.95763905,190.01,189.97,13.87936245]
[1760907379786,2.95763905,190.01,189.97,13.15936245]
[1760907379982,2.95763905,190.0,189.97,13.15936245]
[1760907380190,22.88,190.01,189.98,0.72]
[1760907380363,22.88,190.01,189.97,2.30763905]
[1760907380696,22.88,190.01,189.97,0.72]
[1760907380877,22.88,190.01,189.98,5.26371196]
[1760907382078,22.88,190.01,189.98,5.98371196]
[1760907382396,22.88,190.01,189.98,0.72]
[1760907382893,2.95763905,190.07,190.0,2.30763905]
[1760907383074,5.25955924,190.13,189.97,18.42396167]
[1760907383075,2.30763905,190.09,190.03,2.30763905]
[1760907383395,23.53,190.1,190.04,2.30763905]
[1760907383682,0.65,190.09,190.03,3.02763905]
[1760907384270,23.53,190.09,190.04,5.26205009]
[1760907384571,22.88,190.09,190.04,5.26205009]
[1760907384773,0.65,190.08,190.04,5.26205009]
[1760907384968,0.65,190.07,190.04,5.26205009]
[1760907386295,0.65,190.07,190.03,5.262327]
[1760907387175,0.65,190.07,190.03,5.982327]
[1760907387894,0.65,190.07,190.03,5.262327]
[1760907389195,0.65,190.07,190.02,18.41876762]
[1760907389399,0.65,190.07,190.02,19.13876762]
[1760907390008,0.65,190.06,190.02,5.26260393]
[1760907390171,0.65,190.05,190.02,5.26260393]
[1760907390513,0.65,190.05,190.01,5.262849]
[1760907390796,2.95763905,190.05,190.01,5.262849]
[1760907391196,0.65,190.05,190.0,5.26315789]
[1760907391385,23.53,190.08,190.02,2.30763905]
[1760907391582,23.53,190.08,190.03,0.72]
[1760907391583,22.88,190.08,190.03,0.72]
[1760907391771,0.65,190.07,190.03,2.30763905]
[1760907391974,0.65,190.07,190.03,3.02763905]
[1760907392199,22.88,190.08,190.03,3.02763905]
[1760907392501,23.53,190.08,190.03,3.02763905]
[1760907393091,2.95763905,190.11,190.04,8.28968914]
[1760907393285,0.65,190.13,190.07,2.30763905]
[1760907393597,22.88,190.12,190.07,3.02763905]
[1760907393803,22.88,190.12,190.08,0.72]
[1760907394508,23.53,190.12,190.09,5.260666]
[1760907396010,23.53,190.11,190.06,13.15356059]
[1760907396181,23.53,190.11,190.04,5.26192361]
[1760907396182,22.88,190.09,190.04,5.26192361]
[1760907396507,0.65,190.08,190.03,18.41814258]
[1760907396810,0.65,190.08,190.03,19.13814258]
[1760907397907,22.88,190.07,190.03,20.72578163]
[1760907398111,23.53,190.13,190.06,2.30763905]
[1760907398418,0.65,190.13,190.07,3.02763905]
[1760907398712,23.53,190.13,190.08,5.26094276]
[1760907398898,23.53,190.13,190.08,5.98094276]
[1760907399213,27.13213438,190.13,190.08,5.98094276]
[1760907399424,22.88,190.13,190.08,5.98094276]
[1760907399592,22.88,190.13,190.09,4.32213438]
[1760907400085,22.88,190.13,190.08,8.86307714]
[1760907400292,0.65,190.12,190.08,5.26094276]
[1760907400523,22.88,190.13,190.08,5.98094276]
[1760907400816,0.65,190.12,190.08,5.98094276]
[1760907400994,0.65,190.12,190.08,5.26094276]
[1760907401315,26.48213438,190.13,190.08,5.26094276]
[1760907401493,23.53,190.12,190.08,5.26094276]
[1760907401693,23.53,190.12,190.07,5.26121955]
[1760907401908,0.65,190.11,190.07,5.26121955]
[1760907402311,26.48213438,190.12,190.07,5.26121955]
[1760907402514,0.65,190.1,190.07,5.26121955]
[1760907403020,0.65,190.09,190.07,5.26121955]
[1760907404123,3.60213438,190.09,190.05,5.26154319]
[1760907404324,0.69,190.08,190.05,5.26154319]
[1760907404509,4.29213438,190.08,190.05,5.26154319]
[1760907404706,3.60213438,190.08,190.05,5.26154319]
[1760907404910,0.69,190.07,190.05,5.26154319]
[1760907405112,3.60213438,190.06,190.03,5.26209591]
[1760907405306,26.48213438,190.07,190.03,5.97209591]
[1760907405710,27.17213438,190.07,190.03,5.97209591]
[1760907406111,27.17213438,190.07,190.02,5.26260393]
[1760907406326,27.17213438,190.07,190.02,5.97260393]
[1760907406529,27.17213438,190.06,190.02,5.26260393]
[1760907406827,3.60213438,190.04,190.0,5.26288586]
[1760907407004,3.60213438,190.04,190.0,5.97288586]
[1760907407403,4.29213438,190.04,190.0,5.97288586]
[1760907407603,4.29213438,190.04,190.0,5.26288586]
[1760907407897,4.29213438,190.03,190.0,5.26288586]
[1760907408105,4.29213438,190.03,189.98,18.42267423]
[1760907408299,4.29213438,190.03,189.98,19.13267423]
[1760907409426,0.69,190.03,189.98,22.02480861]
[1760907409609,3.60213438,190.04,190.0,5.26315789]
[1760907409797,0.69,190.03,190.0,5.26315789]
[1760907410000,3.60213438,190.03,189.98,9.5755861]
[1760907410225,23.57,190.05,189.99,0.71]
[1760907410400,3.60213438,190.03,189.99,0.71]
[1760907410600,23.57,190.05,189.99,0.71]
[1760907410801,3.60213438,190.03,189.98,8.8655861]
[1760907411114,4.29213438,190.03,189.98,9.5755861]
[1760907411517,4.29213438,190.03,189.98,22.73486602]
[1760907412645,3.60213438,190.03,189.91,26.32794462]
[1760907412811,3.60213438,190.0,189.95,3.60213438]
[1760907413127,3.60213438,190.0,189.96,0.71]
[1760907413324,3.60213438,190.01,189.97,0.71]
[1760907414107,3.60213438,190.01,189.96,3.60213438]
[1760907414108,3.60213438,190.02,189.98,0.71]
[1760907414607,4.29213438,190.02,189.98,0.71]
[1760907414807,4.29213438,190.02,189.96,3.60213438]
[1760907414808,4.29213438,190.02,189.97,5.26398905]
[1760907415126,4.29213438,190.02,189.97,5.97398905]
[1760907416226,3.60213438,190.01,189.97,5.97398905]
[1760907416413,4.29213438,190.01,189.97,5.97398905]
[1760907417111,0.69,190.01,189.97,5.97398905]
[1760907418036,0.69,190.01,189.97,67.77398905]
[1760907419039,4.29213438,190.01,189.97,67.77398905]
[1760907420233,22.88,190.04,189.97,5.26398905]
[1760907420234,4.29213438,190.0,189.97,5.26398905]
[1760907420538,22.88,190.04,189.99,3.60213438]
[1760907420737,22.88,190.04,190.0,0.71]
[1760907420919,27.17213438,190.04,189.98,65.40213438]
[1760907421236,27.17213438,190.04,189.98,66.11213438]
[1760907421443,3.60213438,190.03,189.98,61.8]
[1760907421737,3.60213438,190.01,189.98,61.8]
[1760907421920,3.60213438,189.99,189.97,5.26398905]
[1760907422127,4.29213438,189.99,189.97,5.26398905]
[1760907422442,4.29213438,189.99,189.95,5.2645433]
[1760907422627,0.69,189.98,189.95,5.2645433]
[1760907423041,3.60213438,189.99,189.95,5.9745433]
[1760907423232,4.29213438,189.99,189.95,5.2645433]
[1760907423736,0.69,189.98,189.95,5.2645433]
[1760907424544,0.69,189.98,189.94,5.26482046]
[1760907425049,3.60213438,189.98,189.94,5.26482046]
[1760907425252,28.14268788,190.02,189.94,5.26482046]
[1760907425253,4.29213438,189.97,189.94,5.26482046]
[1760907425550,33.75647521,190.02,189.92,5.26537489]
[1760907425551,3.60213438,189.95,189.92,5.26537489]
[1760907425728,4.29213438,189.95,189.92,5.26537489]
[1760907425927,3.60213438,189.96,189.92,5.26537489]
[1760907426118,4.29213438,189.96,189.92,5.26537489]
[1760907426828,3.60213438,189.96,189.92,5.26537489]
[1760907427033,3.60213438,189.94,189.91,5.26565215]
[1760907427232,0.69,189.93,189.91,5.26565215]
[1760907427430,3.60213438,189.92,189.89,5.26620675]
[1760907427942,4.29213438,189.93,189.89,5.26620675]
[1760907428139,22.88,189.95,189.9,4.31213438]
[1760907428328,22.88,189.95,189.91,0.71]
[1760907428529,23.57,189.95,189.91,0.71]
[1760907428747,10.87647521,189.98,189.91,0.71]
[1760907428953,3.60213438,189.96,189.91,0.71]
[1760907429138,4.29213438,189.96,189.92,5.97537489]
[1760907429653,4.29213438,189.96,189.92,5.26537489]
[1760907431261,22.88,189.98,189.93,0.68]
[1760907431455,23.54,189.98,189.94,3.60213438]
[1760907431751,0.66,190.02,189.97,3.60213438]
[1760907431944,0.66,190.02,189.97,4.28213438]
[1760907432348,10.87647521,190.06,189.97,4.28213438]
[1760907432349,0.66,190.04,189.99,3.60213438]
[1760907432547,3.60213438,190.05,189.99,3.60213438]
[1760907432846,4.26213438,190.04,189.98,3.60213438]
[1760907433057,23.54,190.03,189.98,3.60213438]
[1760907433261,0.66,190.02,189.99,5.26343491]
[1760907434753,0.69,190.01,189.98,67.06367852]
[1760907434932,3.60213438,190.01,189.98,67.06367852]
[1760907435255,0.69,190.0,189.98,67.06367852]
[1760907436144,22.88,190.03,189.99,3.60213438]
[1760907436331,0.69,190.02,189.98,83.82509282]
[1760907436532,3.60213438,190.01,189.98,67.06367852]
[1760907436835,4.29213438,190.0,189.98,61.8]
[1760907437036,0.69,189.99,189.98,61.8]
[1760907437439,3.60213438,190.0,189.98,61.8]
[1760907437641,4.29213438,190.0,189.98,67.0637057]
[1760907437846,10.87647521,190.02,189.98,67.0637057]
[1760907437847,3.60213438,190.02,189.98,67.0637057]
[1760907438054,22.88,190.03,189.99,0.7]
[1760907438339,22.88,190.03,189.99,66.10213438]
[1760907438951,23.57,190.03,189.99,66.10213438]
[1760907439155,0.69,190.02,189.99,61.8]
[1760907439450,4.29213438,190.02,189.99,61.8]
[1760907439648,0.69,190.01,189.99,61.8]
[1760907439834,0.69,190.0,189.99,61.8]
[1760907441857,22.88,190.01,189.99,61.8]
[1760907442162,0.69,190.01,189.99,61.8]
[1760907443963,0.69,190.0,189.99,61.8]
[1760907444143,0.69,190.0,189.96,61.8]
[1760907444457,26.48213438,190.01,189.96,61.8]
[1760907444666,23.57,190.01,189.96,62.5]
[1760907444961,22.88,190.01,189.96,62.5]
[1760907445263,23.57,190.01,189.96,62.5]
[1760907445452,23.57,190.01,189.97,5.26397547]
[1760907446555,22.88,190.01,189.97,5.26397547]
[1760907446740,23.57,190.01,189.97,5.26397547]
[1760907447248,0.69,190.01,189.97,5.26397547]
[1760907448241,22.88,190.02,189.99,5.26343491]
[1760907448641,22.88,190.02,189.98,5.96367048]
[1760907448950,23.57,190.02,189.98,5.96367048]
[1760907450042,23.57,190.02,189.98,67.76367048]
[1760907450664,23.57,190.02,189.98,67.06367048]
[1760907452469,23.57,190.02,189.98,67.76367048]
[1760907452969,22.88,190.03,189.99,0.7]
[1760907453162,23.57,190.03,189.99,0.7]
[1760907453561,23.57,190.03,189.98,103.84367048]
[1760907453865,23.57,190.03,189.98,71.36580486]
[1760907454042,23.57,190.02,189.98,103.84367048]
[1760907454243,23.57,190.02,189.98,104.54367048]
[1760907454544,22.88,190.02,189.98,104.54367048]
[1760907454759,23.57,190.02,189.98,104.54367048]
[1760907456464,3.60213438,190.04,189.99,0.7]
[1760907456661,3.60213438,190.05,190.0,0.7]
[1760907456871,3.60213438,190.03,189.98,55.2029504]
[1760907457050,0.69,190.02,189.98,55.2029504]
[1760907457566,0.69,190.02,189.98,19.1229504]
[1760907457771,0.69,190.02,189.98,55.2029504]
[1760907457966,0.69,190.02,189.98,18.4229504]
[1760907458357,0.69,190.02,189.98,55.2029504]
[1760907458767,0.69,190.02,189.98,18.4229504]
[1760907458970,0.69,190.02,189.98,55.2029504]
[1760907459157,0.69,190.02,189.98,19.1229504]
[1760907459560,0.69,190.02,189.98,55.8829504]
[1760907460772,22.88,190.03,189.98,55.8829504]
[1760907461079,22.88,190.04,190.0,2.30776142]
[1760907461276,23.57,190.04,190.0,2.30776142]
[1760907461476,23.57,190.04,189.99,3.00776142]
[1760907461681,26.29187598,190.18,190.03,2.30776142]
[1760907461871,2.30776142,190.1,190.03,36.76]
[1760907462075,2.30776142,190.08,190.01,39.06776142]
[1760907462275,0.69,190.07,190.01,39.06776142]
[1760907462576,0.69,190.07,189.98,80.2229504]
[1760907462577,25.87776142,190.06,189.99,36.8]
[1760907462774,0.69,190.05,189.99,37.5]
[1760907463390,23.57,190.05,190.0,5.26315789]
[1760907463572,22.88,190.05,190.01,0.7]
[1760907463958,22.88,190.06,190.02,2.30776142]
[1760907464165,22.88,190.06,190.02,3.02776142]
[1760907464673,22.88,190.06,190.03,5.262327]
[1760907465065,23.56,190.06,190.03,5.262327]
[1760907465277,0.68,190.05,190.0,13.15789473]
[1760907465475,0.68,190.04,190.0,13.15789473]
[1760907467487,0.68,190.04,190.0,18.42105262]
[1760907467863,0.68,190.03,190.0,5.26315789]
[1760907468485,22.88,190.04,190.0,5.26315789]
[1760907468787,23.56,190.04,190.0,5.26315789]
[1760907468959,0.68,190.03,190.0,67.06315789]
[1760907470087,22.88,190.04,190.0,67.06315789]
[1760907470292,0.68,190.03,190.0,67.06315789]
[1760907471691,0.68,190.02,190.0,67.06315789]
[1760907471878,0.68,190.04,190.0,67.06315789]
[1760907472492,0.68,190.03,190.0,67.06315789]
[1760907472883,2.30776142,190.05,190.0,67.06315789]
[1760907473087,0.68,190.02,190.0,67.06315789]
[1760907473402,0.68,190.01,189.95,42.0245433]
[1760907473622,0.68,190.01,189.95,42.7445433]
[1760907473799,23.56,190.01,189.95,42.7445433]
[1760907474303,23.56,190.0,189.94,5.26463063]
[1760907474587,0.68,189.99,189.94,5.26463063]
[1760907474891,0.68,189.99,189.94,5.98463063]
[1760907475092,0.68,189.99,189.94,5.26463063]
[1760907475267,0.68,189.99,189.94,5.98463063]
[1760907476004,23.56,189.99,189.94,5.98463063]
[1760907477192,0.68,189.99,189.94,5.98463063]
[1760907477903,0.68,189.98,189.94,5.26463063]
[1760907478105,0.68,189.97,189.93,5.26507438]
[1760907478299,2.30776142,189.98,189.93,5.26507438]
[1760907478300,0.68,189.96,189.93,5.26507438]
[1760907478900,0.68,189.96,189.92,5.26515898]
[1760907480000,0.68,189.96,189.91,5.26565215]
[1760907480212,0.68,189.96,189.91,5.98565215]
[1760907480503,0.68,189.96,189.92,0.72]
[1760907480699,2.98776142,189.98,189.92,0.72]
[1760907480903,2.98776142,189.98,189.92,3.02776142]
[1760907481210,0.68,189.98,189.93,0.72]
[1760907481402,25.86776142,190.0,189.94,0.72]
[1760907482003,31.13096418,190.0,189.93,5.26509766]
[1760907482207,0.68,189.99,189.93,5.26509766]
[1760907482389,0.68,189.98,189.93,5.26509766]
[1760907482710,0.68,189.97,189.93,5.98509766]
[1760907483310,0.68,190.01,189.94,3.02776142]
[1760907483485,0.68,190.01,189.93,18.42784182]
[1760907483486,2.30776142,190.03,189.96,2.30776142]
[1760907483690,22.88,190.01,189.96,3.02776142]
[1760907483887,0.68,190.0,189.94,3.02776142]
[1760907484196,23.56,189.99,189.95,5.2645433]
[1760907485512,0.68,189.98,189.95,5.2645433]
[1760907486113,0.68,189.98,189.94,8.29246165]
[1760907487210,0.68,189.98,189.94,5.98470023]
[1760907487607,30.45067294,190.01,189.94,5.98470023]
[1760907487808,0.68,189.99,189.94,5.98470023]
[1760907488104,0.68,189.98,189.94,5.98470023]
[1760907488311,0.68,189.98,189.94,67.78470023]
[1760907488815,22.88,190.01,189.95,3.02776142]
[1760907489009,0.68,190.0,189.95,2.30776142]
[1760907489211,23.56,189.99,189.95,3.02776142]
[1760907489602,23.56,189.99,189.95,0.72]
[1760907489986,0.68,189.98,189.94,67.06470023]
[1760907490191,0.68,189.98,189.94,67.78470023]
[1760907490415,0.68,189.99,189.94,67.78470023]
[1760907491205,0.72,189.98,189.94,67.78470023]
[1760907491706,0.72,189.99,189.94,67.78470023]
[1760907492718,0.72,189.99,189.95,5.94447026]
[1760907493219,23.6,189.99,189.95,5.94447026]
[1760907493416,22.88,189.99,189.95,5.26447026]
[1760907493608,0.72,189.98,189.95,5.26447026]
[1760907493806,23.6,189.98,189.95,5.26447026]
[1760907494008,22.88,189.98,189.95,5.26447026]
[1760907494921,23.55,189.98,189.95,5.26447026]
[1760907495119,0.67,189.97,189.91,0.65]
[1760907495423,2.97776142,189.97,189.9,2.95776142]
[1760907495628,0.67,189.96,189.9,2.95776142]
[1760907495799,0.67,189.95,189.9,2.95776142]
[1760907496402,0.67,189.95,189.91,0.65]
[1760907497017,0.67,189.95,189.91,5.26539212]
[1760907497224,10.87647521,190.01,189.92,0.65]
[1760907497525,51.92042497,190.14,189.92,0.65]
[1760907497526,10.87647521,190.13,189.99,2.30776142]
[1760907497831,0.67,190.07,190.03,2.30776142]
[1760907498015,0.67,190.06,190.01,2.30776142]
[1760907498216,2.30776142,190.09,190.01,2.95776142]
[1760907498431,22.88,190.05,190.01,2.95776142]
[1760907498726,23.55,190.05,190.01,2.95776142]
[1760907499318,23.55,190.05,190.01,2.30776142]
[1760907499823,23.55,190.04,189.99,2.95776142]
[1760907500324,23.55,190.04,189.99,8.22117468]
[1760907500509,23.55,190.04,190.0,0.65]
[1760907500822,22.88,190.05,190.0,0.65]
[1760907501127,22.88,190.05,190.02,5.26260393]
[1760907501311,23.55,190.08,190.03,0.65]
[1760907501511,0.67,190.07,190.03,0.65]
[1760907501701,23.55,190.07,190.03,0.65]
[1760907501903,23.55,190.07,190.02,5.26260393]
[1760907502125,23.55,190.07,190.02,5.91260393]
[1760907502999,22.88,190.07,190.03,0.65]
[1760907503730,25.85776142,190.09,190.04,0.65]
[1760907503913,23.55,190.09,190.05,0.65]
[1760907504113,22.88,190.07,190.03,5.26228708]
[1760907504310,0.67,190.06,190.01,8.22047929]
[1760907505322,22.88,190.07,190.02,0.65]
[1760907505531,22.88,190.07,190.03,0.65]
[1760907505715,22.88,190.07,190.03,5.91228498]
[1760907507226,23.55,190.07,190.03,5.26228498]
[1760907507406,23.55,190.07,190.03,5.91228498]
[1760907507909,23.55,190.07,190.02,5.26260393]
[1760907508114,23.55,190.07,190.02,5.91260393]
[1760907508115,0.67,190.06,190.02,5.91260393]
[1760907508741,0.67,190.06,190.02,67.71260393]